[Event "2026 Biel Blitz Open"]
[Site "Biel, CH"]
[Date "2026.07.19"]
[Round "12"]
[White "Jehnichen, Kai"]
[Black "Filimonov, Arsenii"]
[Result "1-0"]
[Board "41"]
[TimeControl "180+2"]
[WhiteFideId "24684333"]
[BlackFideId "34171584"]
[WhiteElo "1952"]
[BlackElo "1735"]
[WhiteClock "0:01:42"]
[BlackClock "0:00:08"]
[Variant "Standard"]
[EndDate "2026.07.19"]
[EndTime "16:00:30"]

1. e4 {[%clk 0:03:01]}  c5 {[%clk 0:03:04]} 2. Nf3 {[%clk 0:03:01]}  e6 {[%clk 0:03:05]} 3. d4 {[%clk 0:03:02]}  cxd4 {[%clk 0:03:04]}
4. Nxd4 {[%clk 0:03:03]}  a6 {[%clk 0:03:05]} 5. Bd3 {[%clk 0:03:03]}  Qc7 {[%clk 0:03:00]} 6. Nc3 {[%clk 0:03:04]}  Nf6 {[%clk 0:03:01]}
7. Qe2 {[%clk 0:03:04]}  d6 {[%clk 0:02:54]} 8. O-O {[%clk 0:03:04]}  Be7 {[%clk 0:02:55]} 9. a4 {[%clk 0:03:05]}  Nbd7 {[%clk 0:02:55]}
10. a5 {[%clk 0:03:05]}  O-O {[%clk 0:02:52]} 11. Kh1 {[%clk 0:03:06]}  Nc5 {[%clk 0:02:48]} 12. f4 {[%clk 0:02:55]}  e5 {[%clk 0:02:42]}
13. fxe5 {[%clk 0:02:54]}  dxe5 {[%clk 0:02:42]} 14. Nf5 {[%clk 0:02:55]}  Bxf5 {[%clk 0:02:41]} 15. Rxf5 {[%clk 0:02:55]}  Nxd3 {[%clk 0:01:58]}
16. Qxd3 {[%clk 0:02:54]}  Rad8 {[%clk 0:01:59]} 17. Qf3 {[%clk 0:02:51]}  Rd7 {[%clk 0:01:35]} 18. Bg5 {[%clk 0:02:51]}  Qc6 {[%clk 0:01:30]}
19. Rf1 {[%clk 0:02:46]}  Rfd8 {[%clk 0:01:18]} 20. Bxf6 {[%clk 0:02:47]}  Bxf6 {[%clk 0:01:18]} 21. Nd5 {[%clk 0:02:48]}  Rd6 {[%clk 0:01:11]}
22. Qg3 {[%clk 0:02:48]}  Kh8 {[%clk 0:01:07]} 23. c3 {[%clk 0:02:43]}  Rxd5 {[%clk 0:00:33]} 24. exd5 {[%clk 0:02:41]}  Rxd5 {[%clk 0:00:33]}
25. Qf3 {[%clk 0:02:37]}  Qe6 {[%clk 0:00:25]} 26. c4 {[%clk 0:02:29]}  Rd7 {[%clk 0:00:20]} 27. Qe4 {[%clk 0:02:21]}  Qc6 {[%clk 0:00:14]}
28. Qxc6 {[%clk 0:02:14]}  bxc6 {[%clk 0:00:14]} 29. g3 {[%clk 0:02:12]}  Rb7 {[%clk 0:00:10]} 30. R1f2 {[%clk 0:02:06]}  Rb4 {[%clk 0:00:12]}
31. Rc2 {[%clk 0:02:01]}  Ra4 {[%clk 0:00:12]} 32. Kg2 {[%clk 0:01:57]}  Rxa5 {[%clk 0:00:13]} 33. Rf1 {[%clk 0:01:56]}  Ra4 {[%clk 0:00:06]}
34. Rd1 {[%clk 0:01:54]}  Rb4 {[%clk 0:00:05]} 35. Rd7 {[%clk 0:01:54]}  Kg8 {[%clk 0:00:04]} 36. Rc7 {[%clk 0:01:54]}  g6 {[%clk 0:00:03]}
37. Rxc6 {[%clk 0:01:55]}  Kg7 {[%clk 0:00:04]} 38. Rxa6 {[%clk 0:01:56]}  e4 {[%clk 0:00:05]} 39. Ra2 {[%clk 0:01:56]}  Rb3 {[%clk 0:00:04]}
40. Re2 {[%clk 0:01:54]}  e3 {[%clk 0:00:05]} 41. Kf3 {[%clk 0:01:55]}  g5 {[%clk 0:00:05]} 42. Rxe3 {[%clk 0:01:53]}  Rb4 {[%clk 0:00:04]}
43. b3 {[%clk 0:01:52]}  h5 {[%clk 0:00:04]} 44. Ra4 {[%clk 0:01:52]}  Rb6 {[%clk 0:00:04]} 45. c5 {[%clk 0:01:47]}  Rb7 {[%clk 0:00:03]}
46. Rc4 {[%clk 0:01:47]}  g4+ {[%clk 0:00:03]} 47. Ke4 {[%clk 0:01:47]}  Re7+ {[%clk 0:00:04]} 48. Kd3 {[%clk 0:01:48]}  Rd7+ {[%clk 0:00:05]}
49. Kc2 {[%clk 0:01:46]}  Bg5 {[%clk 0:00:07]} 50. Rd3 {[%clk 0:01:47]}  Re7 {[%clk 0:00:08]} 51. b4 {[%clk 0:01:45]}  Re2+ {[%clk 0:00:09]}
52. Kb3 {[%clk 0:01:46]}  Rxh2 {[%clk 0:00:09]} 53. c6 {[%clk 0:01:47]}  Re2 {[%clk 0:00:06]} 54. c7 {[%clk 0:01:46]}  Re8 {[%clk 0:00:07]}
55. c8=Q {[%clk 0:01:45]}  Rxc8 {[%clk 0:00:08]} 56. Rxc8 {[%clk 0:01:42]} 1-0

[Event "2026 Biel Blitz Open"]
[Site "Biel, CH"]
[Date "2026.07.19"]
[Round "12"]
[White "Pinelli, Gian"]
[Black "Stevens, Christian"]
[Result "1-0"]
[Board "42"]
[TimeControl "180+2"]
[WhiteFideId "1348710"]
[BlackFideId "649090"]
[WhiteElo "1751"]
[BlackElo "1912"]
[WhiteClock "0:01:42"]
[BlackClock "0:01:13"]
[Variant "Standard"]
[EndDate "2026.07.19"]
[EndTime "16:01:16"]

1. d4 {[%clk 0:03:03]}  Nf6 {[%clk 0:03:03]} 2. c4 {[%clk 0:03:04]}  g6 {[%clk 0:03:03]} 3. Nc3 {[%clk 0:03:05]}  Bg7 {[%clk 0:03:04]}
4. e4 {[%clk 0:03:06]}  d6 {[%clk 0:03:04]} 5. Be2 {[%clk 0:03:07]}  O-O {[%clk 0:03:04]} 6. Bg5 {[%clk 0:03:07]}  h6 {[%clk 0:03:02]}
7. Be3 {[%clk 0:03:08]}  e5 {[%clk 0:03:00]} 8. d5 {[%clk 0:03:04]}  a5 {[%clk 0:03:01]} 9. Qd2 {[%clk 0:03:05]}  Kh7 {[%clk 0:03:01]}
10. f3 {[%clk 0:03:06]}  Na6 {[%clk 0:03:01]} 11. g4 {[%clk 0:03:02]}  Nd7 {[%clk 0:02:55]} 12. h4 {[%clk 0:02:58]}  Ndc5 {[%clk 0:02:50]}
13. h5 {[%clk 0:02:40]}  g5 {[%clk 0:02:50]} 14. Nh3 {[%clk 0:02:41]}  f6 {[%clk 0:02:48]} 15. Nf2 {[%clk 0:02:39]}  Bd7 {[%clk 0:02:40]}
16. Bd1 {[%clk 0:01:59]}  Qe7 {[%clk 0:02:21]} 17. Bc2 {[%clk 0:01:53]}  c6 {[%clk 0:02:09]} 18. a3 {[%clk 0:01:45]}  b5 {[%clk 0:01:29]}
19. dxc6 {[%clk 0:01:43]}  Bxc6 {[%clk 0:01:28]} 20. cxb5 {[%clk 0:01:44]}  d5 {[%clk 0:01:13]} 21. exd5+ {[%clk 0:01:42]} 1-0

[Event "2026 Biel Blitz Open"]
[Site "Biel, CH"]
[Date "2026.07.19"]
[Round "12"]
[White "Freuler, Roman"]
[Black "Boner, Timm"]
[Result "0-1"]
[Board "44"]
[TimeControl "180+2"]
[WhiteFideId "1304283"]
[BlackFideId "1330039"]
[WhiteElo "1852"]
[BlackElo "1705"]
[WhiteClock "0:00:11"]
[BlackClock "0:00:24"]
[Variant "Standard"]
[EndDate "2026.07.19"]
[EndTime "16:05:52"]

1. e4 {[%clk 0:03:03]}  e5 {[%clk 0:03:03]} 2. Nf3 {[%clk 0:03:03]}  Nc6 {[%clk 0:03:05]} 3. Bc4 {[%clk 0:03:00]}  Nf6 {[%clk 0:03:05]}
4. d3 {[%clk 0:03:01]}  d6 {[%clk 0:03:06]} 5. h3 {[%clk 0:03:02]}  Be7 {[%clk 0:03:05]} 6. O-O {[%clk 0:03:01]}  O-O {[%clk 0:03:05]}
7. Be3 {[%clk 0:02:56]}  Na5 {[%clk 0:03:03]} 8. Bb3 {[%clk 0:02:56]}  Nxb3 {[%clk 0:03:04]} 9. axb3 {[%clk 0:02:57]}  d5 {[%clk 0:03:04]}
10. exd5 {[%clk 0:02:41]}  Qxd5 {[%clk 0:03:00]} 11. Rxa7 {[%clk 0:02:31]}  Rxa7 {[%clk 0:02:59]} 12. Bxa7 {[%clk 0:02:32]}  b6 {[%clk 0:03:00]}
13. Nc3 {[%clk 0:02:28]}  Qa5 {[%clk 0:02:55]} 14. Qa1 {[%clk 0:02:27]}  Qxa1 {[%clk 0:02:44]} 15. Rxa1 {[%clk 0:02:28]}  Bb7 {[%clk 0:02:43]}
16. Nb5 {[%clk 0:02:22]}  Rc8 {[%clk 0:02:18]} 17. Nxe5 {[%clk 0:02:13]}  h5 {[%clk 0:02:03]} 18. Nc4 {[%clk 0:02:12]}  Nd5 {[%clk 0:01:55]}
19. Re1 {[%clk 0:01:41]}  Bf6 {[%clk 0:01:43]} 20. c3 {[%clk 0:01:15]}  Bc6 {[%clk 0:01:43]} 21. Nxc7 {[%clk 0:00:38]}  Rxc7 {[%clk 0:01:39]}
22. Bxb6 {[%clk 0:00:36]}  Nxb6 {[%clk 0:01:38]} 23. Nxb6 {[%clk 0:00:38]}  Rb7 {[%clk 0:01:39]} 24. Nc4 {[%clk 0:00:34]}  Rxb3 {[%clk 0:01:34]}
25. Na5 {[%clk 0:00:30]}  Rb6 {[%clk 0:01:33]} 26. Nxc6 {[%clk 0:00:30]}  Rxc6 {[%clk 0:01:33]} 27. d4 {[%clk 0:00:31]}  Bg5 {[%clk 0:01:31]}
28. Kf1 {[%clk 0:00:28]}  Rb6 {[%clk 0:01:32]} 29. Re2 {[%clk 0:00:29]}  Bc1 {[%clk 0:01:31]} 30. b4 {[%clk 0:00:26]}  Rc6 {[%clk 0:01:29]}
31. Rc2 {[%clk 0:00:27]}  Ba3 {[%clk 0:01:27]} 32. Ke2 {[%clk 0:00:24]}  Bxb4 {[%clk 0:01:28]} 33. Kd3 {[%clk 0:00:25]}  Ba5 {[%clk 0:01:27]}
34. c4 {[%clk 0:00:25]}  Kf8 {[%clk 0:01:28]} 35. Re2 {[%clk 0:00:26]}  Re6 {[%clk 0:01:27]} 36. Ra2 {[%clk 0:00:23]}  Bc7 {[%clk 0:01:24]}
37. c5 {[%clk 0:00:20]}  g5 {[%clk 0:01:21]} 38. Kc4 {[%clk 0:00:21]}  Ke7 {[%clk 0:01:17]} 39. d5 {[%clk 0:00:23]}  Re4+ {[%clk 0:01:18]}
40. Kb5 {[%clk 0:00:24]}  Kf6 {[%clk 0:01:15]} 41. Kc6 {[%clk 0:00:24]}  Be5 {[%clk 0:01:14]} 42. d6 {[%clk 0:00:24]}  Rd4 {[%clk 0:01:14]}
43. d7 {[%clk 0:00:22]}  Ke7 {[%clk 0:01:15]} 44. Re2 {[%clk 0:00:19]}  f6 {[%clk 0:01:15]} 45. g3 {[%clk 0:00:18]}  Kd8 {[%clk 0:01:12]}
46. Ra2 {[%clk 0:00:16]}  Ke7 {[%clk 0:01:09]} 47. Ra8 {[%clk 0:00:16]}  Rxd7 {[%clk 0:01:00]} 48. Ra2 {[%clk 0:00:10]}  g4 {[%clk 0:00:57]}
49. hxg4 {[%clk 0:00:09]}  hxg4 {[%clk 0:00:57]} 50. Ra4 {[%clk 0:00:09]}  Rc7+ {[%clk 0:00:58]} 51. Kb5 {[%clk 0:00:09]}  f5 {[%clk 0:00:56]}
52. Ra2 {[%clk 0:00:11]}  Ke6 {[%clk 0:00:57]} 53. Re2 {[%clk 0:00:12]}  Kf6 {[%clk 0:00:55]} 54. Kb6 {[%clk 0:00:13]}  Rc8 {[%clk 0:00:53]}
55. c6 {[%clk 0:00:13]}  Rb8+ {[%clk 0:00:54]} 56. Ka7 {[%clk 0:00:14]}  Bc7 {[%clk 0:00:43]} 57. Rd2 {[%clk 0:00:14]}  Ke6 {[%clk 0:00:41]}
58. Rd7 {[%clk 0:00:15]}  Be5 {[%clk 0:00:39]} 59. Rh7 {[%clk 0:00:12]}  Kd5 {[%clk 0:00:36]} 60. c7 {[%clk 0:00:12]}  Bxc7 {[%clk 0:00:33]}
61. Rxc7 {[%clk 0:00:13]}  Rb2 {[%clk 0:00:34]} 62. Rd7+ {[%clk 0:00:13]}  Ke6 {[%clk 0:00:35]} 63. Rd3 {[%clk 0:00:06]}  Rxf2 {[%clk 0:00:34]}
64. Kb6 {[%clk 0:00:08]}  Rf3 {[%clk 0:00:34]} 65. Rd2 {[%clk 0:00:06]}  Rxg3 {[%clk 0:00:34]} 66. Kc5 {[%clk 0:00:08]}  Re3 {[%clk 0:00:35]}
67. Kd4 {[%clk 0:00:09]}  Re1 {[%clk 0:00:35]} 68. Ra2 {[%clk 0:00:06]}  Kf6 {[%clk 0:00:36]} 69. Kd3 {[%clk 0:00:07]}  Kg5 {[%clk 0:00:37]}
70. Kd2 {[%clk 0:00:08]}  Re8 {[%clk 0:00:38]} 71. Ra4 {[%clk 0:00:08]}  g3 {[%clk 0:00:36]} 72. Ra7 {[%clk 0:00:08]}  f4 {[%clk 0:00:29]}
73. Rg7+ {[%clk 0:00:07]}  Kh4 {[%clk 0:00:29]} 74. Rg6 {[%clk 0:00:05]}  Kh3 {[%clk 0:00:28]} 75. Rf6 {[%clk 0:00:05]}  Kg4 {[%clk 0:00:25]}
76. Rg6+ {[%clk 0:00:06]}  Kf3 {[%clk 0:00:26]} 77. Rg7 {[%clk 0:00:07]}  g2 {[%clk 0:00:26]} 78. Rg6 {[%clk 0:00:09]}  Kf2 {[%clk 0:00:25]}
79. Rg4 {[%clk 0:00:10]}  f3 {[%clk 0:00:25]} 80. Rg7 {[%clk 0:00:11]}  g1=Q {[%clk 0:00:24]} 0-1

[Event "2026 Biel Blitz Open"]
[Site "Biel, CH"]
[Date "2026.07.19"]
[Round "12"]
[White "Berezovskii, Arina"]
[Black "Gireada, Lucas"]
[Result "1-0"]
[Board "45"]
[TimeControl "180+2"]
[WhiteFideId "34449850"]
[BlackFideId "1373544"]
[WhiteElo "1851"]
[BlackElo "1651"]
[WhiteTitle "WCM"]
[WhiteClock "0:00:40"]
[BlackClock "0:00:46"]
[Variant "Standard"]
[EndDate "2026.07.19"]
[EndTime "16:06:00"]

1. e4 {[%clk 0:03:03]}  c5 {[%clk 0:03:04]} 2. Nf3 {[%clk 0:03:04]}  d6 {[%clk 0:03:05]} 3. c3 {[%clk 0:03:05]}  Nf6 {[%clk 0:03:05]}
4. h3 {[%clk 0:03:06]}  Nc6 {[%clk 0:03:04]} 5. Bd3 {[%clk 0:03:07]}  g6 {[%clk 0:02:54]} 6. Bc2 {[%clk 0:03:08]}  e5 {[%clk 0:02:50]}
7. d4 {[%clk 0:03:04]}  cxd4 {[%clk 0:02:47]} 8. cxd4 {[%clk 0:03:05]}  exd4 {[%clk 0:02:40]} 9. Nxd4 {[%clk 0:03:06]}  Bg7 {[%clk 0:02:26]}
10. Be3 {[%clk 0:02:58]}  O-O {[%clk 0:02:23]} 11. O-O {[%clk 0:02:57]}  Re8 {[%clk 0:02:20]} 12. Nc3 {[%clk 0:02:57]}  d5 {[%clk 0:02:16]}
13. Nxc6 {[%clk 0:02:43]}  bxc6 {[%clk 0:02:16]} 14. Bg5 {[%clk 0:02:31]}  Qb6 {[%clk 0:01:59]} 15. Bxf6 {[%clk 0:02:14]}  Bxf6 {[%clk 0:02:00]}
16. exd5 {[%clk 0:02:15]}  Qxb2 {[%clk 0:02:01]} 17. Ne4 {[%clk 0:01:31]}  Qxa1 {[%clk 0:01:55]} 18. Qf3 {[%clk 0:01:26]}  Qxf1+ {[%clk 0:01:34]}
19. Kxf1 {[%clk 0:01:22]}  Ba6+ {[%clk 0:01:26]} 20. Kg1 {[%clk 0:01:08]}  Bg7 {[%clk 0:01:27]} 21. Nd6 {[%clk 0:01:06]}  Re1+ {[%clk 0:01:14]}
22. Kh2 {[%clk 0:01:03]}  Be5+ {[%clk 0:01:16]} 23. g3 {[%clk 0:00:57]}  Bxd6 {[%clk 0:01:16]} 24. dxc6 {[%clk 0:00:58]}  Rc8 {[%clk 0:00:55]}
25. Bb3 {[%clk 0:00:50]}  Re7 {[%clk 0:00:55]} 26. Qd5 {[%clk 0:00:40]}  Bb4 {[%clk 0:00:46]} 1-0

[Event "2026 Biel Blitz Open"]
[Site "Biel, CH"]
[Date "2026.07.19"]
[Round "12"]
[White "Delesenne, Arthur"]
[Black "Koehler, Noe"]
[Result "1-0"]
[Board "47"]
[TimeControl "180+2"]
[WhiteFideId "276979"]
[BlackFideId "1362488"]
[WhiteElo "1789"]
[BlackElo "1639"]
[WhiteClock "0:00:09"]
[BlackClock "0:00:07"]
[Variant "Standard"]
[EndDate "2026.07.19"]
[EndTime "16:06:06"]

1. e4 {[%clk 0:03:03]}  c5 {[%clk 0:03:03]} 2. Nf3 {[%clk 0:03:04]}  e6 {[%clk 0:03:04]} 3. c3 {[%clk 0:03:04]}  Nf6 {[%clk 0:03:05]}
4. e5 {[%clk 0:03:04]}  Nd5 {[%clk 0:03:06]} 5. g3 {[%clk 0:03:05]}  Nc6 {[%clk 0:03:04]} 6. Bg2 {[%clk 0:03:05]}  Qc7 {[%clk 0:03:03]}
7. Qe2 {[%clk 0:03:03]}  Be7 {[%clk 0:03:00]} 8. O-O {[%clk 0:03:02]}  O-O {[%clk 0:02:53]} 9. d4 {[%clk 0:03:00]}  cxd4 {[%clk 0:02:52]}
10. cxd4 {[%clk 0:03:00]}  d6 {[%clk 0:02:53]} 11. exd6 {[%clk 0:02:56]}  Bxd6 {[%clk 0:02:42]} 12. Nc3 {[%clk 0:02:56]}  Nf6 {[%clk 0:02:34]}
13. Nb5 {[%clk 0:02:52]}  Qd7 {[%clk 0:02:29]} 14. Nxd6 {[%clk 0:02:48]}  Qxd6 {[%clk 0:02:29]} 15. Rd1 {[%clk 0:02:35]}  Rd8 {[%clk 0:02:25]}
16. Bg5 {[%clk 0:02:30]}  Qe7 {[%clk 0:02:16]} 17. a3 {[%clk 0:02:05]}  h6 {[%clk 0:02:17]} 18. Bf4 {[%clk 0:01:52]}  Nd5 {[%clk 0:02:12]}
19. Be3 {[%clk 0:01:41]}  Nxe3 {[%clk 0:02:02]} 20. fxe3 {[%clk 0:01:36]}  Rb8 {[%clk 0:01:47]} 21. b4 {[%clk 0:01:36]}  b6 {[%clk 0:01:34]}
22. Rac1 {[%clk 0:01:33]}  Bb7 {[%clk 0:01:30]} 23. Rc2 {[%clk 0:01:13]}  Rdc8 {[%clk 0:01:17]} 24. Rdc1 {[%clk 0:01:13]}  Qf6 {[%clk 0:00:59]}
25. Qb5 {[%clk 0:01:02]}  Ne7 {[%clk 0:00:37]} 26. Ne5 {[%clk 0:00:28]}  Qg5 {[%clk 0:00:15]} 27. Qd3 {[%clk 0:00:17]}  Rxc2 {[%clk 0:00:16]}
28. Rxc2 {[%clk 0:00:17]}  Rc8 {[%clk 0:00:17]} 29. Bxb7 {[%clk 0:00:14]}  Rxc2 {[%clk 0:00:18]} 30. Qxc2 {[%clk 0:00:14]}  Qxe3+ {[%clk 0:00:18]}
31. Qf2 {[%clk 0:00:15]}  Qc1+ {[%clk 0:00:18]} 32. Kg2 {[%clk 0:00:15]}  Nf5 {[%clk 0:00:16]} 33. Be4 {[%clk 0:00:10]}  Qc3 {[%clk 0:00:15]}
34. Bxf5 {[%clk 0:00:09]}  exf5 {[%clk 0:00:13]} 35. Nf3 {[%clk 0:00:08]}  Qxa3 {[%clk 0:00:14]} 36. Qd2 {[%clk 0:00:08]}  Qb3 {[%clk 0:00:12]}
37. d5 {[%clk 0:00:08]}  Qc4 {[%clk 0:00:10]} 38. d6 {[%clk 0:00:09]}  Qc8 {[%clk 0:00:11]} 39. d7 {[%clk 0:00:10]}  Qd8 {[%clk 0:00:13]}
40. Ne5 {[%clk 0:00:10]}  Qa8+ {[%clk 0:00:08]} 41. Kh3 {[%clk 0:00:09]}  Qd8 {[%clk 0:00:08]} 42. Nc6 {[%clk 0:00:09]}  Qg5 {[%clk 0:00:07]}
43. Qxg5 {[%clk 0:00:09]} 1-0

[Event "2026 Biel Blitz Open"]
[Site "Biel, CH"]
[Date "2026.07.19"]
[Round "12"]
[White "Mikavica, Dragoljub"]
[Black "Vedant Nayudu"]
[Result "0-1"]
[Board "49"]
[TimeControl "180+2"]
[WhiteFideId "1308726"]
[BlackFideId "33369780"]
[WhiteElo "1983"]
[BlackElo "1732"]
[WhiteClock "0:01:02"]
[BlackClock "0:00:10"]
[Variant "Standard"]
[EndDate "2026.07.19"]
[EndTime "15:59:42"]

1. Nf3 {[%clk 0:03:02]}  d5 {[%clk 0:03:03]} 2. g3 {[%clk 0:03:04]}  Nf6 {[%clk 0:03:03]} 3. Bg2 {[%clk 0:03:05]}  c5 {[%clk 0:03:05]}
4. d4 {[%clk 0:03:06]}  Nc6 {[%clk 0:02:58]} 5. c3 {[%clk 0:03:06]}  cxd4 {[%clk 0:02:51]} 6. cxd4 {[%clk 0:03:07]}  Bf5 {[%clk 0:02:51]}
7. a3 {[%clk 0:03:02]}  e6 {[%clk 0:02:52]} 8. O-O {[%clk 0:02:59]}  Bd6 {[%clk 0:02:45]} 9. Nc3 {[%clk 0:02:58]}  O-O {[%clk 0:02:44]}
10. Bg5 {[%clk 0:02:56]}  h6 {[%clk 0:02:44]} 11. Bxf6 {[%clk 0:02:56]}  Qxf6 {[%clk 0:02:44]} 12. Rc1 {[%clk 0:02:43]}  Rac8 {[%clk 0:02:19]}
13. Re1 {[%clk 0:02:44]}  Rfd8 {[%clk 0:02:16]} 14. e4 {[%clk 0:02:31]}  dxe4 {[%clk 0:02:15]} 15. Nxe4 {[%clk 0:02:32]}  Qe7 {[%clk 0:01:34]}
16. Nxd6 {[%clk 0:02:31]}  Rxd6 {[%clk 0:01:25]} 17. d5 {[%clk 0:02:10]}  Rxd5 {[%clk 0:00:50]} 18. Qxd5 {[%clk 0:02:07]}  exd5 {[%clk 0:00:51]}
19. Rxe7 {[%clk 0:02:01]}  Nxe7 {[%clk 0:00:50]} 20. Rxc8+ {[%clk 0:01:58]}  Nxc8 {[%clk 0:00:44]} 21. Nd4 {[%clk 0:01:55]}  Be6 {[%clk 0:00:32]}
22. f4 {[%clk 0:01:56]}  g6 {[%clk 0:00:31]} 23. h3 {[%clk 0:01:47]}  Nd6 {[%clk 0:00:29]} 24. g4 {[%clk 0:01:47]}  Nc4 {[%clk 0:00:31]}
25. f5 {[%clk 0:01:41]}  Bc8 {[%clk 0:00:19]} 26. Bxd5 {[%clk 0:01:36]}  Ne3 {[%clk 0:00:11]} 27. Be4 {[%clk 0:01:29]}  gxf5 {[%clk 0:00:12]}
28. gxf5 {[%clk 0:01:29]}  Nc4 {[%clk 0:00:10]} 29. Nb5 {[%clk 0:01:17]}  Nxb2 {[%clk 0:00:06]} 30. Nxa7 {[%clk 0:01:13]}  Bd7 {[%clk 0:00:07]}
31. Bxb7 {[%clk 0:01:16]}  Bxf5 {[%clk 0:00:08]} 32. Bg2 {[%clk 0:01:16]}  Nc4 {[%clk 0:00:09]} 33. a4 {[%clk 0:01:15]}  Bd7 {[%clk 0:00:08]}
34. Nb5 {[%clk 0:01:14]}  Bxb5 {[%clk 0:00:07]} 35. axb5 {[%clk 0:01:15]}  Kf8 {[%clk 0:00:07]} 36. Kf2 {[%clk 0:01:13]}  Ke7 {[%clk 0:00:08]}
37. Ke2 {[%clk 0:01:15]}  Kd6 {[%clk 0:00:08]} 38. Kd3 {[%clk 0:01:15]}  Kc5 {[%clk 0:00:07]} 39. Bf1 {[%clk 0:01:10]}  Nd6 {[%clk 0:00:06]}
40. Ke3 {[%clk 0:01:05]}  Nxb5 {[%clk 0:00:05]} 41. Bxb5 {[%clk 0:01:06]}  Kxb5 {[%clk 0:00:06]} 42. Kf4 {[%clk 0:01:08]}  Kc6 {[%clk 0:00:08]}
43. Kf5 {[%clk 0:01:09]}  Kd7 {[%clk 0:00:09]} 44. Kf6 {[%clk 0:01:09]}  Ke8 {[%clk 0:00:08]} 45. Kg7 {[%clk 0:01:02]}  f5 {[%clk 0:00:10]}
46. Kg6 {[%clk 0:00:57]} 0-1

[Event "2026 Biel Blitz Open"]
[Site "Biel, CH"]
[Date "2026.07.19"]
[Round "12"]
[White "Chantrell, Paul"]
[Black "Draude, Theo"]
[Result "0-1"]
[Board "52"]
[TimeControl "180+2"]
[WhiteFideId "451967"]
[BlackFideId "34623809"]
[WhiteElo "1749"]
[BlackElo "1861"]
[WhiteClock "0:00:06"]
[BlackClock "0:00:09"]
[Variant "Standard"]
[EndDate "2026.07.19"]
[EndTime "16:06:11"]

1. e4 {[%clk 0:03:03]}  a6 {[%clk 0:03:04]} 2. d4 {[%clk 0:03:03]}  e6 {[%clk 0:03:05]} 3. Nf3 {[%clk 0:03:04]}  d5 {[%clk 0:03:07]}
4. e5 {[%clk 0:03:03]}  c5 {[%clk 0:03:08]} 5. c3 {[%clk 0:03:04]}  Nc6 {[%clk 0:03:10]} 6. Be2 {[%clk 0:02:56]}  f5 {[%clk 0:03:10]}
7. exf6 {[%clk 0:02:55]}  Nxf6 {[%clk 0:03:11]} 8. Bg5 {[%clk 0:02:48]}  Be7 {[%clk 0:03:10]} 9. Bxf6 {[%clk 0:02:40]}  gxf6 {[%clk 0:03:01]}
10. O-O {[%clk 0:02:35]}  Rg8 {[%clk 0:03:00]} 11. dxc5 {[%clk 0:02:26]}  Bxc5 {[%clk 0:03:00]} 12. Nd4 {[%clk 0:02:25]}  Nxd4 {[%clk 0:02:54]}
13. Bh5+ {[%clk 0:02:23]}  Ke7 {[%clk 0:02:49]} 14. cxd4 {[%clk 0:02:22]}  Bd6 {[%clk 0:02:50]} 15. Re1 {[%clk 0:02:15]}  Qf8 {[%clk 0:02:48]}
16. Nc3 {[%clk 0:02:14]}  Qh6 {[%clk 0:02:49]} 17. Nxd5+ {[%clk 0:02:00]}  Kd8 {[%clk 0:02:45]} 18. Nb6 {[%clk 0:01:39]}  Rb8 {[%clk 0:02:21]}
19. Nxc8 {[%clk 0:01:32]}  Rxc8 {[%clk 0:02:19]} 20. Rxe6 {[%clk 0:01:27]}  Kd7 {[%clk 0:02:18]} 21. Re1 {[%clk 0:01:18]}  Rg5 {[%clk 0:02:11]}
22. Bg4+ {[%clk 0:01:16]}  f5 {[%clk 0:02:12]} 23. Bf3 {[%clk 0:01:08]}  Qxh2+ {[%clk 0:02:00]} 24. Kf1 {[%clk 0:01:10]}  Qh1+ {[%clk 0:01:33]}
25. Ke2 {[%clk 0:01:10]}  Re8+ {[%clk 0:01:35]} 26. Kd3 {[%clk 0:00:48]}  Rxe1 {[%clk 0:01:05]} 27. Qxe1 {[%clk 0:00:43]}  Qh4 {[%clk 0:00:54]}
28. Rc1 {[%clk 0:00:35]}  Rg7 {[%clk 0:00:21]} 29. Qa5 {[%clk 0:00:29]}  Qf6 {[%clk 0:00:07]} 30. Bxb7 {[%clk 0:00:21]}  f4 {[%clk 0:00:08]}
31. Qa4+ {[%clk 0:00:20]}  Ke7 {[%clk 0:00:08]} 32. Qc6 {[%clk 0:00:18]}  Qf5+ {[%clk 0:00:09]} 33. Qe4+ {[%clk 0:00:17]}  Qxe4+ {[%clk 0:00:10]}
34. Kxe4 {[%clk 0:00:16]}  Rxg2 {[%clk 0:00:09]} 35. Rc2 {[%clk 0:00:14]}  Rg5 {[%clk 0:00:09]} 36. d5 {[%clk 0:00:14]}  Re5+ {[%clk 0:00:06]}
37. Kd4 {[%clk 0:00:13]}  Rh5 {[%clk 0:00:10]} 38. Bxa6 {[%clk 0:00:11]}  Rh2 {[%clk 0:00:11]} 39. Bc4 {[%clk 0:00:12]}  h5 {[%clk 0:00:12]}
40. Ke4 {[%clk 0:00:11]}  h4 {[%clk 0:00:13]} 41. Kf3 {[%clk 0:00:12]}  h3 {[%clk 0:00:13]} 42. Kg4 {[%clk 0:00:12]}  Rh1 {[%clk 0:00:14]}
43. Bd3 {[%clk 0:00:11]}  h2 {[%clk 0:00:14]} 44. Be4 {[%clk 0:00:13]}  Rg1+ {[%clk 0:00:15]} 45. Kf5 {[%clk 0:00:12]}  h1=Q {[%clk 0:00:15]}
46. Bxh1 {[%clk 0:00:13]}  Rxh1 {[%clk 0:00:15]} 47. b3 {[%clk 0:00:14]}  Rh5+ {[%clk 0:00:16]} 48. Ke4 {[%clk 0:00:14]}  Re5+ {[%clk 0:00:16]}
49. Kd4 {[%clk 0:00:15]}  Rh5 {[%clk 0:00:12]} 50. a4 {[%clk 0:00:15]}  f3 {[%clk 0:00:15]} 51. Ke3 {[%clk 0:00:15]}  Rh4 {[%clk 0:00:15]}
52. Kxf3 {[%clk 0:00:14]}  Rh3+ {[%clk 0:00:16]} 53. Ke4 {[%clk 0:00:13]}  Rxb3 {[%clk 0:00:17]} 54. Rc4 {[%clk 0:00:14]}  Ra3 {[%clk 0:00:17]}
55. f4 {[%clk 0:00:14]}  Rh3 {[%clk 0:00:16]} 56. Kf5 {[%clk 0:00:13]}  Rf3 {[%clk 0:00:15]} 57. Kg4 {[%clk 0:00:12]}  Ra3 {[%clk 0:00:16]}
58. Kg5 {[%clk 0:00:11]}  Rg3+ {[%clk 0:00:17]} 59. Kf5 {[%clk 0:00:11]}  Rf3 {[%clk 0:00:17]} 60. Kg4 {[%clk 0:00:11]}  Ra3 {[%clk 0:00:18]}
61. f5 {[%clk 0:00:10]}  Rg3+ {[%clk 0:00:17]} 62. Kh5 {[%clk 0:00:10]}  Rg1 {[%clk 0:00:14]} 63. Re4+ {[%clk 0:00:09]}  Kf7 {[%clk 0:00:13]}
64. Re6 {[%clk 0:00:09]}  Bb8 {[%clk 0:00:11]} 65. d6 {[%clk 0:00:09]}  Rd1 {[%clk 0:00:12]} 66. Re7+ {[%clk 0:00:06]}  Kf8 {[%clk 0:00:10]}
67. Rb7 {[%clk 0:00:06]}  Bxd6 {[%clk 0:00:09]} 68. Kg6 {[%clk 0:00:00]} 0-1